Workbook

Sheet Introduction
B3: KSU-Own Tractor
B5: An Excel spreadsheet to evaluate the economic costs of owning and operating a tractor.
L8: Version- 6.30.16
B28: INSTRUCTIONS FOR THE USER:
B29: Be sure to "Enable Content" and "Enable Macros" for the spreadsheet to function correctly. This spreadsheet uses macros to print the three different pages, however printing can also be done manually by highlighting the desired range and using the menu print commands.
B31: In the "User input" tab all blue numbers are inputs and all black numbers are calculated from these inputs. Several input cells (i.e., blue number) have a red diamond in the upper right hand corner of the cell. By moving your mouse cursor over this diamond, a brief description of the input will be displayed on the screen.
B35: FOR MORE INFORMATION:
B36: For explanation of the inputs used in this spreadsheet see the supporting paper:
B37: Evaluating Tractor Ownership with the Own Tractor Spreadsheet
B38: *This publication provides information on how to use the tool, however some values in the tool have been updated since the paper was written.
B40: With Questions contact: | G40: Originally Developed by:
B42: Rich Llewelyn | G42: Kevin C. Dhuyvetter, Ph.D.
B43: Extension Assistant | G43: Former Agricultural Economist
B44: Kansas State University | G44: Kansas State University
B45: rvl@ksu.edu
B46: 785-532-1504 | G46: Terry L. Kastens, Ph.D.
G47: Emeritus Agricultural Economist
G48: Kansas State University
B51: Copyright 2016 AgManager.info, K-State Department of Agricultural Economics

Sheet User input
B2: User Input and related calculations section (blue shaded cells are inputs)
B4: Information pertaining to tractor depreciation and repairs
H5: Depreciation factors | J5: Repair factors
C6: Tractor class | H6: year | I6: 100 hrs use | J6: RF1 | K6: RF2
C7: 1 | D7: John Deere 2wd and MFWD | H7: -0.05243250774 | I7: -0.003380140393 | J7: 0.005 | K7: 2
C8: 2 | D8: Case-IH 2wd and MFWD | H8: -0.05876889952 | I8: -0.003581967031 | J8: 0.005 | K8: 2
C9: 3 | D9: AGCO 2wd and MFWD | H9: -0.06219139879 | I9: -0.004899910516 | J9: 0.005 | K9: 2
C10: 4 | D10: John Deere full time 4wd | H10: -0.05166633948 | I10: -0.003955538562 | J10: 0.003 | K10: 2
C11: 5 | D11: Case-IH full time 4wd | H11: -0.06027195506 | I11: -0.004334017554 | J11: 0.003 | K11: 2
C12: 6 | D12: Cat / JD Track tractors | H12: -0.06590091923 | I12: -0.005850575582 | J12: 0.003 | K12: 2
D14: Factors used in analysis => | E14: =IF($F17=1,D7,IF($F17=2,D8,IF($F17=3,D9,IF($F17=4,D10,IF($F17=5,D11,IF($F17=6,D12,"NA")))))) -> Case-IH 2wd and MFWD | H14: =IF($F17=1,H7,IF($F17=2,H8,IF($F17=3,H9,IF($F17=4,H10,IF($F17=5,H11,IF($F17=6,H12,"NA")))))) -> -0.05876889952 | I14: =IF($F17=1,I7,IF($F17=2,I8,IF($F17=3,I9,IF($F17=4,I10,IF($F17=5,I11,IF($F17=6,I12,"NA")))))) -> -0.003581967031 | J14: =IF($F17=1,J7,IF($F17=2,J8,IF($F17=3,J9,IF($F17=4,J10,IF($F17=5,J11,IF($F17=6,J12,"NA")))))) -> 0.005 | K14: =IF($F17=1,K7,IF($F17=2,K8,IF($F17=3,K9,IF($F17=4,K10,IF($F17=5,K11,IF($F17=6,K12,"NA")))))) -> 2
H16: =IF(L17>'User input'!F63,"Section-179 exceeds maximum allowed!",IF(AND(F18>'User input'!F65,L18=1),"Bonus 1st-yr depreciation is NOT available!","")) -> 
B17: Tractor class (1-6) | F17: 2 | H17: ="Section-179 deduction (max of $"&FIXED('User input'!F63,0)&" in "&FIXED('User input'!F62,0,1)&")" -> Section-179 deduction (max of $500,000 in 2016) | L17: 0
B18: Tractor age in years | F18: 0 | H18: =FIXED('User input'!F64*100,0)&"% bonus 1st-yr dep. On new equip. (yes=1, no=0)" -> 50% bonus 1st-yr dep. On new equip. (yes=1, no=0) | L18: 1
B19: Hours on tractor | F19: 0 | H19: Calculated bonus yr-1 depreciation | L19: =IF(AND(F18=0,L18=1),(F21-MIN(F21,MIN('User input'!F63,L17)))*'User input'!F64,0) -> 80000
H20: Calculated net $ amount to depreciate | L20: =F21-MIN(F21,MIN('User input'!F63,L17))-L19 -> 80000
B21: Purchase price of tractor w/o trade-in | F21: 160000 | H21: 1st year MACRS depreciation rate | L21: 0.1429
B22: Market price of tractor | F22: 160000 | H22: 2nd year MACRS depreciation rate | L22: 0.2449
B23: Cash downpayment | F23: 50000 | H23: 3rd year MACRS depreciation rate | L23: 0.1749
B24: Calculated new equivalent price (NEP) | F24: =F22/EXP(H14*F18+I14*F19/100) -> 160000 | H24: 4th year MACRS depreciation rate | L24: 0.1249
H25: 5th year MACRS depreciation rate | L25: 0.0893
B26: No. of seasons (years) before trade (maximum 20) | F26: 4 | H26: 6th year MACRS depreciation rate | L26: 0.0892
B27: Hours tractor will be used annually | F27: 600 | H27: 7th year MACRS depreciation rate | L27: 0.0893
H28: 8th year MACRS depreciation rate | L28: 0.0446
B29: Repair adjustment factor (0.8 to 1.2, usually 1) (RAF) | F29: 1 | H29: Calculated error check of depreciation rates | L29: =SUM(L21:L28) -> 1 | M29: =IF(OR(L29>1.01,L29<0.99),"<= Error!"," ") -> 
B30: Tax, insurance, & shelter (TIS - % of value, decimal) | F30: 0.015 | H30: =IF(OR(L29>1.01,L29<0.99),"Total depreciation rate should add to 100%!"," ") -> 
H31: Calculated after-tax NPVc from TT section | L31: ='Time and Tax (TT)'!U4 -> 34381.0351
B32: Bank interest rate (enter as decimal) | F32: 0.05 | H32: Calculated after-tax amortized NPV from TT | L32: =F36*L31 -> 9301.463024
B33: State + U.S. marginal income tax rate (decimal) | F33: 0.2 | H33: Calculated pre-tax amortized NPV from TT | L33: =L32/(1-F33-F34) -> 14376.29525
B34: Self-employment tax (0 if corporation) | F34: 0.153 | H34: Prorated to opportunity interest | L34: =L33*'Time and Tax (TT)'!G7 -> 4791.244756
B35: Calculated after-tax discount rate | F35: =F32*(1-F33-F34) -> 0.03235 | H35: Prorated to market depreciation | L35: =L33*'Time and Tax (TT)'!H7 -> 7390.426067
B36: Calculated after-tax amortization factor | F36: =F35/(1-(1+F35)^-F26) -> 0.2705405174 | H36: Prorated to repairs | L36: =L33*'Time and Tax (TT)'!Q7 -> 757.2509958
B37: Calculated 1-year after-tax discount factor | F37: =1/(1+F35) -> 0.9686637284 | H37: Prorated to tax, insurance, & shelter (TIS) | L37: =L33*'Time and Tax (TT)'!O7 -> 1437.373427
B62: Year | F62: 2016
B63: Section 179 allowance | F63: 500000
B64: Bonus depreciation | F64: 0.5
B65: Min age for bonus dep (new=0) | F65: 0

Sheet Time and Tax (TT)
B2: Time and tax (TT) section
T4: After-tax net present value of costs (NPVc) => | U4: =SUM(U12:U32) -> 34381.0351
F6: after-tax NPV => | G6: =SUMPRODUCT($C12:$C32,G12:G32)*(1-'User input'!$F33-'User input'!$F34) -> 17084.66585 | H6: =SUMPRODUCT($C12:$C32,H12:H32)*(1-'User input'!$F33-'User input'!$F34) -> 26352.85114 | N6: after-tax NPV => | O6: =SUMPRODUCT($C12:$C32,O12:O32)*(1-'User input'!$F33-'User input'!$F34) -> 5125.399755 | Q6: =SUMPRODUCT($C12:$C32,Q12:Q32)*(1-'User input'!$F33-'User input'!$F34) -> 2700.21276
F7: % of total => | G7: =G6/($G6+$H6+$O6+$Q6) -> 0.3332739537 | H7: =H6/($G6+$H6+$O6+$Q6) -> 0.5140702761 | N7: % of total => | O7: =O6/($G6+$H6+$O6+$Q6) -> 0.09998218611 | Q7: =Q6/($G6+$H6+$O6+$Q6) -> 0.05267358404
K8: EOY*
C9: after-tax | D9: EOY* | E9: EOY* | F9: est. | I9: tax | J9: Sec. 179 | K9: or year | R9: =SUM(R12:R32)/'User input'!F26 -> 1.92
C10: discount | D10: machine | E10: machine | F10: machine | G10: opp. | H10: market | I10: deprec. | J10: and tax | K10: of sale | L10: loan | M10: loan | N10: downpmt | P10: accum. | Q10: annual | R10: repairs | S10: tax | T10: net | U10: discounted
B11: year | C11: factor | D11: age | E11: hours | F11: value | G11: interest | H11: deprec. | I11: rate | J11: deprec. | K11: tax basis | L11: interest | M11: principal | N11: or sale | O11: TIS** | P11: repairs | Q11: repairs | R11: per hour | S11: savings | T11: cash out | U11: cash out
B12: 0 | C12: =IF(B12>'User input'!F$26,"",'User input'!F$37^B12) -> 1 | D12: =IF(B12>'User input'!F$26,"",IF(B12=0,'User input'!F$18,D11+1)) -> 0 | E12: =IF(B12>'User input'!F$26,"",IF(B12=0,'User input'!F$19,E11+'User input'!F$27)) -> 0 | F12: =IF(B12>'User input'!F$26,"",EXP('User input'!H$14*(D12-'User input'!F$18)+'User input'!I$14*((E12-'User input'!F$19)/100))*'User input'!F$22) -> 160000 | G12: =IF(B12>'User input'!F$26,"",IF(B12>0,F11*'User input'!F$32,0)) -> 0 | H12: =IF(B12>'User input'!F$26,"",IF(B12>0,F11-F12,0)) -> 0 | I12: =IF(B12>'User input'!F$26,"",IF(B12>7,0,IF(SUM(I$11:I11)<1,IF(B12='User input'!F$26,'User input'!L21/2,'User input'!L21),0))) -> 0.1429 | J12: =IF(B12>'User input'!F$26,"",IF(B12=0,MIN('User input'!F$21,'User input'!L$17)+'User input'!L$19+'User input'!L$20*I12,'User input'!L$20*I12)) -> 91432 | K12: =IF(B12>'User input'!F$26,"",IF(B12=0,'User input'!F$21-J12,K11-J12)) -> 68568 | L12: =IF(B12>'User input'!F$26,"",IF(B12>0,('User input'!F$21-'User input'!F$23)*'User input'!F$32,0)) -> 0 | M12: =IF(B12>'User input'!F$26,"",IF(B12='User input'!F$26,'User input'!F$21-'User input'!F$23,0)) -> 0 | N12: =IF(B12>'User input'!F$26,"",IF(B12=0,'User input'!F$23,IF(B12='User input'!F$26,-F12,0))) -> 50000 | O12: =IF(B12>'User input'!F$26,"",IF(B12>0,'User input'!F$30*F11,0)) -> 0 | P12: =IF(B12>'User input'!F$26,"",'User input'!J$14*'User input'!F$24*(E12/1000)^'User input'!K$14*'User input'!F$29) -> 0 | Q12: =IF(B12>'User input'!F$26,"",IF(B12>0,(P12-P11),0)) -> 0 | R12: =IF(B12>'User input'!F$26,"",Q12/'User input'!F$27) -> 0 | S12: =IF(B12>'User input'!F$26,"",(J12+L12+O12+Q12)*('User input'!F$33+'User input'!F$34)-IF(B12='User input'!F$26,(F12-K12)*'User input'!F$33,0)) -> 32275.496 | T12: =IF(B12>'User input'!F$26,"",L12+M12+N12+O12+Q12-S12) -> 17724.504 | U12: =IF(B12>'User input'!F$26,"",C12*T12) -> 17724.504
B13: =IF(B12>='User input'!F$26,"",B12+1) -> 1 | C13: =IF(B13>'User input'!F$26,"",'User input'!F$37^B13) -> 0.9686637284 | D13: =IF(B13>'User input'!F$26,"",IF(B13=0,'User input'!F$18,D12+1)) -> 1 | E13: =IF(B13>'User input'!F$26,"",IF(B13=0,'User input'!F$19,E12+'User input'!F$27)) -> 600 | F13: =IF(B13>'User input'!F$26,"",EXP('User input'!H$14*(D13-'User input'!F$18)+'User input'!I$14*((E13-'User input'!F$19)/100))*'User input'!F$22) -> 147660.1152 | G13: =IF(B13>'User input'!F$26,"",IF(B13>0,F12*'User input'!F$32,0)) -> 8000 | H13: =IF(B13>'User input'!F$26,"",IF(B13>0,F12-F13,0)) -> 12339.88484 | I13: =IF(B13>'User input'!F$26,"",IF(B13>7,0,IF(SUM(I$11:I12)<1,IF(B13='User input'!F$26,'User input'!L22/2,'User input'!L22),0))) -> 0.2449 | J13: =IF(B13>'User input'!F$26,"",IF(B13=0,MIN('User input'!F$21,'User input'!L$17)+'User input'!L$19+'User input'!L$20*I13,'User input'!L$20*I13)) -> 19592 | K13: =IF(B13>'User input'!F$26,"",IF(B13=0,'User input'!F$21-J13,K12-J13)) -> 48976 | L13: =IF(B13>'User input'!F$26,"",IF(B13>0,('User input'!F$21-'User input'!F$23)*'User input'!F$32,0)) -> 5500 | M13: =IF(B13>'User input'!F$26,"",IF(B13='User input'!F$26,'User input'!F$21-'User input'!F$23,0)) -> 0 | N13: =IF(B13>'User input'!F$26,"",IF(B13=0,'User input'!F$23,IF(B13='User input'!F$26,-F13,0))) -> 0 | O13: =IF(B13>'User input'!F$26,"",IF(B13>0,'User input'!F$30*F12,0)) -> 2400 | P13: =IF(B13>'User input'!F$26,"",'User input'!J$14*'User input'!F$24*(E13/1000)^'User input'!K$14*'User input'!F$29) -> 288 | Q13: =IF(B13>'User input'!F$26,"",IF(B13>0,(P13-P12),0)) -> 288 | R13: =IF(B13>'User input'!F$26,"",Q13/'User input'!F$27) -> 0.48 | S13: =IF(B13>'User input'!F$26,"",(J13+L13+O13+Q13)*('User input'!F$33+'User input'!F$34)-IF(B13='User input'!F$26,(F13-K13)*'User input'!F$33,0)) -> 9806.34 | T13: =IF(B13>'User input'!F$26,"",L13+M13+N13+O13+Q13-S13) -> -1618.34 | U13: =IF(B13>'User input'!F$26,"",C13*T13) -> -1567.627258
B14: =IF(B13>='User input'!F$26,"",B13+1) -> 2 | C14: =IF(B14>'User input'!F$26,"",'User input'!F$37^B14) -> 0.9383094187 | D14: =IF(B14>'User input'!F$26,"",IF(B14=0,'User input'!F$18,D13+1)) -> 2 | E14: =IF(B14>'User input'!F$26,"",IF(B14=0,'User input'!F$19,E13+'User input'!F$27)) -> 1200 | F14: =IF(B14>'User input'!F$26,"",EXP('User input'!H$14*(D14-'User input'!F$18)+'User input'!I$14*((E14-'User input'!F$19)/100))*'User input'!F$22) -> 136271.9351 | G14: =IF(B14>'User input'!F$26,"",IF(B14>0,F13*'User input'!F$32,0)) -> 7383.005758 | H14: =IF(B14>'User input'!F$26,"",IF(B14>0,F13-F14,0)) -> 11388.1801 | I14: =IF(B14>'User input'!F$26,"",IF(B14>7,0,IF(SUM(I$11:I13)<1,IF(B14='User input'!F$26,'User input'!L23/2,'User input'!L23),0))) -> 0.1749 | J14: =IF(B14>'User input'!F$26,"",IF(B14=0,MIN('User input'!F$21,'User input'!L$17)+'User input'!L$19+'User input'!L$20*I14,'User input'!L$20*I14)) -> 13992 | K14: =IF(B14>'User input'!F$26,"",IF(B14=0,'User input'!F$21-J14,K13-J14)) -> 34984 | L14: =IF(B14>'User input'!F$26,"",IF(B14>0,('User input'!F$21-'User input'!F$23)*'User input'!F$32,0)) -> 5500 | M14: =IF(B14>'User input'!F$26,"",IF(B14='User input'!F$26,'User input'!F$21-'User input'!F$23,0)) -> 0 | N14: =IF(B14>'User input'!F$26,"",IF(B14=0,'User input'!F$23,IF(B14='User input'!F$26,-F14,0))) -> 0 | O14: =IF(B14>'User input'!F$26,"",IF(B14>0,'User input'!F$30*F13,0)) -> 2214.901727 | P14: =IF(B14>'User input'!F$26,"",'User input'!J$14*'User input'!F$24*(E14/1000)^'User input'!K$14*'User input'!F$29) -> 1152 | Q14: =IF(B14>'User input'!F$26,"",IF(B14>0,(P14-P13),0)) -> 864 | R14: =IF(B14>'User input'!F$26,"",Q14/'User input'!F$27) -> 1.44 | S14: =IF(B14>'User input'!F$26,"",(J14+L14+O14+Q14)*('User input'!F$33+'User input'!F$34)-IF(B14='User input'!F$26,(F14-K14)*'User input'!F$33,0)) -> 7967.52831 | T14: =IF(B14>'User input'!F$26,"",L14+M14+N14+O14+Q14-S14) -> 611.3734176 | U14: =IF(B14>'User input'!F$26,"",C14*T14) -> 573.6574361
B15: =IF(B14>='User input'!F$26,"",B14+1) -> 3 | C15: =IF(B15>'User input'!F$26,"",'User input'!F$37^B15) -> 0.9089062999 | D15: =IF(B15>'User input'!F$26,"",IF(B15=0,'User input'!F$18,D14+1)) -> 3 | E15: =IF(B15>'User input'!F$26,"",IF(B15=0,'User input'!F$19,E14+'User input'!F$27)) -> 1800 | F15: =IF(B15>'User input'!F$26,"",EXP('User input'!H$14*(D15-'User input'!F$18)+'User input'!I$14*((E15-'User input'!F$19)/100))*'User input'!F$22) -> 125762.0601 | G15: =IF(B15>'User input'!F$26,"",IF(B15>0,F14*'User input'!F$32,0)) -> 6813.596753 | H15: =IF(B15>'User input'!F$26,"",IF(B15>0,F14-F15,0)) -> 10509.87491 | I15: =IF(B15>'User input'!F$26,"",IF(B15>7,0,IF(SUM(I$11:I14)<1,IF(B15='User input'!F$26,'User input'!L24/2,'User input'!L24),0))) -> 0.1249 | J15: =IF(B15>'User input'!F$26,"",IF(B15=0,MIN('User input'!F$21,'User input'!L$17)+'User input'!L$19+'User input'!L$20*I15,'User input'!L$20*I15)) -> 9992 | K15: =IF(B15>'User input'!F$26,"",IF(B15=0,'User input'!F$21-J15,K14-J15)) -> 24992 | L15: =IF(B15>'User input'!F$26,"",IF(B15>0,('User input'!F$21-'User input'!F$23)*'User input'!F$32,0)) -> 5500 | M15: =IF(B15>'User input'!F$26,"",IF(B15='User input'!F$26,'User input'!F$21-'User input'!F$23,0)) -> 0 | N15: =IF(B15>'User input'!F$26,"",IF(B15=0,'User input'!F$23,IF(B15='User input'!F$26,-F15,0))) -> 0 | O15: =IF(B15>'User input'!F$26,"",IF(B15>0,'User input'!F$30*F14,0)) -> 2044.079026 | P15: =IF(B15>'User input'!F$26,"",'User input'!J$14*'User input'!F$24*(E15/1000)^'User input'!K$14*'User input'!F$29) -> 2592 | Q15: =IF(B15>'User input'!F$26,"",IF(B15>0,(P15-P14),0)) -> 1440 | R15: =IF(B15>'User input'!F$26,"",Q15/'User input'!F$27) -> 2.4 | S15: =IF(B15>'User input'!F$26,"",(J15+L15+O15+Q15)*('User input'!F$33+'User input'!F$34)-IF(B15='User input'!F$26,(F15-K15)*'User input'!F$33,0)) -> 6698.555896 | T15: =IF(B15>'User input'!F$26,"",L15+M15+N15+O15+Q15-S15) -> 2285.52313 | U15: =IF(B15>'User input'!F$26,"",C15*T15) -> 2077.326371
B16: =IF(B15>='User input'!F$26,"",B15+1) -> 4 | C16: =IF(B16>'User input'!F$26,"",'User input'!F$37^B16) -> 0.8804245652 | D16: =IF(B16>'User input'!F$26,"",IF(B16=0,'User input'!F$18,D15+1)) -> 4 | E16: =IF(B16>'User input'!F$26,"",IF(B16=0,'User input'!F$19,E15+'User input'!F$27)) -> 2400 | F16: =IF(B16>'User input'!F$26,"",EXP('User input'!H$14*(D16-'User input'!F$18)+'User input'!I$14*((E16-'User input'!F$19)/100))*'User input'!F$22) -> 116062.7518 | G16: =IF(B16>'User input'!F$26,"",IF(B16>0,F15*'User input'!F$32,0)) -> 6288.103007 | H16: =IF(B16>'User input'!F$26,"",IF(B16>0,F15-F16,0)) -> 9699.308372 | I16: =IF(B16>'User input'!F$26,"",IF(B16>7,0,IF(SUM(I$11:I15)<1,IF(B16='User input'!F$26,'User input'!L25/2,'User input'!L25),0))) -> 0.04465 | J16: =IF(B16>'User input'!F$26,"",IF(B16=0,MIN('User input'!F$21,'User input'!L$17)+'User input'!L$19+'User input'!L$20*I16,'User input'!L$20*I16)) -> 3572 | K16: =IF(B16>'User input'!F$26,"",IF(B16=0,'User input'!F$21-J16,K15-J16)) -> 21420 | L16: =IF(B16>'User input'!F$26,"",IF(B16>0,('User input'!F$21-'User input'!F$23)*'User input'!F$32,0)) -> 5500 | M16: =IF(B16>'User input'!F$26,"",IF(B16='User input'!F$26,'User input'!F$21-'User input'!F$23,0)) -> 110000 | N16: =IF(B16>'User input'!F$26,"",IF(B16=0,'User input'!F$23,IF(B16='User input'!F$26,-F16,0))) -> -116062.7518 | O16: =IF(B16>'User input'!F$26,"",IF(B16>0,'User input'!F$30*F15,0)) -> 1886.430902 | P16: =IF(B16>'User input'!F$26,"",'User input'!J$14*'User input'!F$24*(E16/1000)^'User input'!K$14*'User input'!F$29) -> 4608 | Q16: =IF(B16>'User input'!F$26,"",IF(B16>0,(P16-P15),0)) -> 2016 | R16: =IF(B16>'User input'!F$26,"",Q16/'User input'!F$27) -> 3.36 | S16: =IF(B16>'User input'!F$26,"",(J16+L16+O16+Q16)*('User input'!F$33+'User input'!F$34)-IF(B16='User input'!F$26,(F16-K16)*'User input'!F$33,0)) -> -14348.57625 | T16: =IF(B16>'User input'!F$26,"",L16+M16+N16+O16+Q16-S16) -> 17688.25537 | U16: =IF(B16>'User input'!F$26,"",C16*T16) -> 15573.17455
B17: =IF(B16>='User input'!F$26,"",B16+1) ->  | C17: =IF(B17>'User input'!F$26,"",'User input'!F$37^B17) ->  | D17: =IF(B17>'User input'!F$26,"",IF(B17=0,'User input'!F$18,D16+1)) ->  | E17: =IF(B17>'User input'!F$26,"",IF(B17=0,'User input'!F$19,E16+'User input'!F$27)) ->  | F17: =IF(B17>'User input'!F$26,"",EXP('User input'!H$14*(D17-'User input'!F$18)+'User input'!I$14*((E17-'User input'!F$19)/100))*'User input'!F$22) ->  | G17: =IF(B17>'User input'!F$26,"",IF(B17>0,F16*'User input'!F$32,0)) ->  | H17: =IF(B17>'User input'!F$26,"",IF(B17>0,F16-F17,0)) ->  | I17: =IF(B17>'User input'!F$26,"",IF(B17>7,0,IF(SUM(I$11:I16)<1,IF(B17='User input'!F$26,'User input'!L26/2,'User input'!L26),0))) ->  | J17: =IF(B17>'User input'!F$26,"",IF(B17=0,MIN('User input'!F$21,'User input'!L$17)+'User input'!L$19+'User input'!L$20*I17,'User input'!L$20*I17)) ->  | K17: =IF(B17>'User input'!F$26,"",IF(B17=0,'User input'!F$21-J17,K16-J17)) ->  | L17: =IF(B17>'User input'!F$26,"",IF(B17>0,('User input'!F$21-'User input'!F$23)*'User input'!F$32,0)) ->  | M17: =IF(B17>'User input'!F$26,"",IF(B17='User input'!F$26,'User input'!F$21-'User input'!F$23,0)) ->  | N17: =IF(B17>'User input'!F$26,"",IF(B17=0,'User input'!F$23,IF(B17='User input'!F$26,-F17,0))) ->  | O17: =IF(B17>'User input'!F$26,"",IF(B17>0,'User input'!F$30*F16,0)) ->  | P17: =IF(B17>'User input'!F$26,"",'User input'!J$14*'User input'!F$24*(E17/1000)^'User input'!K$14*'User input'!F$29) ->  | Q17: =IF(B17>'User input'!F$26,"",IF(B17>0,(P17-P16),0)) ->  | R17: =IF(B17>'User input'!F$26,"",Q17/'User input'!F$27) ->  | S17: =IF(B17>'User input'!F$26,"",(J17+L17+O17+Q17)*('User input'!F$33+'User input'!F$34)-IF(B17='User input'!F$26,(F17-K17)*'User input'!F$33,0)) ->  | T17: =IF(B17>'User input'!F$26,"",L17+M17+N17+O17+Q17-S17) ->  | U17: =IF(B17>'User input'!F$26,"",C17*T17) -> 
B18: =IF(B17>='User input'!F$26,"",B17+1) ->  | C18: =IF(B18>'User input'!F$26,"",'User input'!F$37^B18) ->  | D18: =IF(B18>'User input'!F$26,"",IF(B18=0,'User input'!F$18,D17+1)) ->  | E18: =IF(B18>'User input'!F$26,"",IF(B18=0,'User input'!F$19,E17+'User input'!F$27)) ->  | F18: =IF(B18>'User input'!F$26,"",EXP('User input'!H$14*(D18-'User input'!F$18)+'User input'!I$14*((E18-'User input'!F$19)/100))*'User input'!F$22) ->  | G18: =IF(B18>'User input'!F$26,"",IF(B18>0,F17*'User input'!F$32,0)) ->  | H18: =IF(B18>'User input'!F$26,"",IF(B18>0,F17-F18,0)) ->  | I18: =IF(B18>'User input'!F$26,"",IF(B18>7,0,IF(SUM(I$11:I17)<1,IF(B18='User input'!F$26,'User input'!L27/2,'User input'!L27),0))) ->  | J18: =IF(B18>'User input'!F$26,"",IF(B18=0,MIN('User input'!F$21,'User input'!L$17)+'User input'!L$19+'User input'!L$20*I18,'User input'!L$20*I18)) ->  | K18: =IF(B18>'User input'!F$26,"",IF(B18=0,'User input'!F$21-J18,K17-J18)) ->  | L18: =IF(B18>'User input'!F$26,"",IF(B18>0,('User input'!F$21-'User input'!F$23)*'User input'!F$32,0)) ->  | M18: =IF(B18>'User input'!F$26,"",IF(B18='User input'!F$26,'User input'!F$21-'User input'!F$23,0)) ->  | N18: =IF(B18>'User input'!F$26,"",IF(B18=0,'User input'!F$23,IF(B18='User input'!F$26,-F18,0))) ->  | O18: =IF(B18>'User input'!F$26,"",IF(B18>0,'User input'!F$30*F17,0)) ->  | P18: =IF(B18>'User input'!F$26,"",'User input'!J$14*'User input'!F$24*(E18/1000)^'User input'!K$14*'User input'!F$29) ->  | Q18: =IF(B18>'User input'!F$26,"",IF(B18>0,(P18-P17),0)) ->  | R18: =IF(B18>'User input'!F$26,"",Q18/'User input'!F$27) ->  | S18: =IF(B18>'User input'!F$26,"",(J18+L18+O18+Q18)*('User input'!F$33+'User input'!F$34)-IF(B18='User input'!F$26,(F18-K18)*'User input'!F$33,0)) ->  | T18: =IF(B18>'User input'!F$26,"",L18+M18+N18+O18+Q18-S18) ->  | U18: =IF(B18>'User input'!F$26,"",C18*T18) -> 
B19: =IF(B18>='User input'!F$26,"",B18+1) ->  | C19: =IF(B19>'User input'!F$26,"",'User input'!F$37^B19) ->  | D19: =IF(B19>'User input'!F$26,"",IF(B19=0,'User input'!F$18,D18+1)) ->  | E19: =IF(B19>'User input'!F$26,"",IF(B19=0,'User input'!F$19,E18+'User input'!F$27)) ->  | F19: =IF(B19>'User input'!F$26,"",EXP('User input'!H$14*(D19-'User input'!F$18)+'User input'!I$14*((E19-'User input'!F$19)/100))*'User input'!F$22) ->  | G19: =IF(B19>'User input'!F$26,"",IF(B19>0,F18*'User input'!F$32,0)) ->  | H19: =IF(B19>'User input'!F$26,"",IF(B19>0,F18-F19,0)) ->  | I19: =IF(B19>'User input'!F$26,"",IF(B19>7,0,IF(SUM(I$11:I18)<1,IF(B19='User input'!F$26,'User input'!L28/2,'User input'!L28),0))) ->  | J19: =IF(B19>'User input'!F$26,"",IF(B19=0,MIN('User input'!F$21,'User input'!L$17)+'User input'!L$19+'User input'!L$20*I19,'User input'!L$20*I19)) ->  | K19: =IF(B19>'User input'!F$26,"",IF(B19=0,'User input'!F$21-J19,K18-J19)) ->  | L19: =IF(B19>'User input'!F$26,"",IF(B19>0,('User input'!F$21-'User input'!F$23)*'User input'!F$32,0)) ->  | M19: =IF(B19>'User input'!F$26,"",IF(B19='User input'!F$26,'User input'!F$21-'User input'!F$23,0)) ->  | N19: =IF(B19>'User input'!F$26,"",IF(B19=0,'User input'!F$23,IF(B19='User input'!F$26,-F19,0))) ->  | O19: =IF(B19>'User input'!F$26,"",IF(B19>0,'User input'!F$30*F18,0)) ->  | P19: =IF(B19>'User input'!F$26,"",'User input'!J$14*'User input'!F$24*(E19/1000)^'User input'!K$14*'User input'!F$29) ->  | Q19: =IF(B19>'User input'!F$26,"",IF(B19>0,(P19-P18),0)) ->  | R19: =IF(B19>'User input'!F$26,"",Q19/'User input'!F$27) ->  | S19: =IF(B19>'User input'!F$26,"",(J19+L19+O19+Q19)*('User input'!F$33+'User input'!F$34)-IF(B19='User input'!F$26,(F19-K19)*'User input'!F$33,0)) ->  | T19: =IF(B19>'User input'!F$26,"",L19+M19+N19+O19+Q19-S19) ->  | U19: =IF(B19>'User input'!F$26,"",C19*T19) -> 
B20: =IF(B19>='User input'!F$26,"",B19+1) ->  | C20: =IF(B20>'User input'!F$26,"",'User input'!F$37^B20) ->  | D20: =IF(B20>'User input'!F$26,"",IF(B20=0,'User input'!F$18,D19+1)) ->  | E20: =IF(B20>'User input'!F$26,"",IF(B20=0,'User input'!F$19,E19+'User input'!F$27)) ->  | F20: =IF(B20>'User input'!F$26,"",EXP('User input'!H$14*(D20-'User input'!F$18)+'User input'!I$14*((E20-'User input'!F$19)/100))*'User input'!F$22) ->  | G20: =IF(B20>'User input'!F$26,"",IF(B20>0,F19*'User input'!F$32,0)) ->  | H20: =IF(B20>'User input'!F$26,"",IF(B20>0,F19-F20,0)) ->  | I20: =IF(B20>'User input'!F$26,"",IF(B20>7,0,IF(SUM(I$11:I19)<1,IF(B20='User input'!F$26,'User input'!L29/2,'User input'!L29),0))) ->  | J20: =IF(B20>'User input'!F$26,"",IF(B20=0,MIN('User input'!F$21,'User input'!L$17)+'User input'!L$19+'User input'!L$20*I20,'User input'!L$20*I20)) ->  | K20: =IF(B20>'User input'!F$26,"",IF(B20=0,'User input'!F$21-J20,K19-J20)) ->  | L20: =IF(B20>'User input'!F$26,"",IF(B20>0,('User input'!F$21-'User input'!F$23)*'User input'!F$32,0)) ->  | M20: =IF(B20>'User input'!F$26,"",IF(B20='User input'!F$26,'User input'!F$21-'User input'!F$23,0)) ->  | N20: =IF(B20>'User input'!F$26,"",IF(B20=0,'User input'!F$23,IF(B20='User input'!F$26,-F20,0))) ->  | O20: =IF(B20>'User input'!F$26,"",IF(B20>0,'User input'!F$30*F19,0)) ->  | P20: =IF(B20>'User input'!F$26,"",'User input'!J$14*'User input'!F$24*(E20/1000)^'User input'!K$14*'User input'!F$29) ->  | Q20: =IF(B20>'User input'!F$26,"",IF(B20>0,(P20-P19),0)) ->  | R20: =IF(B20>'User input'!F$26,"",Q20/'User input'!F$27) ->  | S20: =IF(B20>'User input'!F$26,"",(J20+L20+O20+Q20)*('User input'!F$33+'User input'!F$34)-IF(B20='User input'!F$26,(F20-K20)*'User input'!F$33,0)) ->  | T20: =IF(B20>'User input'!F$26,"",L20+M20+N20+O20+Q20-S20) ->  | U20: =IF(B20>'User input'!F$26,"",C20*T20) -> 
B21: =IF(B20>='User input'!F$26,"",B20+1) ->  | C21: =IF(B21>'User input'!F$26,"",'User input'!F$37^B21) ->  | D21: =IF(B21>'User input'!F$26,"",IF(B21=0,'User input'!F$18,D20+1)) ->  | E21: =IF(B21>'User input'!F$26,"",IF(B21=0,'User input'!F$19,E20+'User input'!F$27)) ->  | F21: =IF(B21>'User input'!F$26,"",EXP('User input'!H$14*(D21-'User input'!F$18)+'User input'!I$14*((E21-'User input'!F$19)/100))*'User input'!F$22) ->  | G21: =IF(B21>'User input'!F$26,"",IF(B21>0,F20*'User input'!F$32,0)) ->  | H21: =IF(B21>'User input'!F$26,"",IF(B21>0,F20-F21,0)) ->  | I21: =IF(B21>'User input'!F$26,"",IF(B21>7,0,IF(SUM(I$11:I20)<1,IF(B21='User input'!F$26,'User input'!L30/2,'User input'!L30),0))) ->  | J21: =IF(B21>'User input'!F$26,"",IF(B21=0,MIN('User input'!F$21,'User input'!L$17)+'User input'!L$19+'User input'!L$20*I21,'User input'!L$20*I21)) ->  | K21: =IF(B21>'User input'!F$26,"",IF(B21=0,'User input'!F$21-J21,K20-J21)) ->  | L21: =IF(B21>'User input'!F$26,"",IF(B21>0,('User input'!F$21-'User input'!F$23)*'User input'!F$32,0)) ->  | M21: =IF(B21>'User input'!F$26,"",IF(B21='User input'!F$26,'User input'!F$21-'User input'!F$23,0)) ->  | N21: =IF(B21>'User input'!F$26,"",IF(B21=0,'User input'!F$23,IF(B21='User input'!F$26,-F21,0))) ->  | O21: =IF(B21>'User input'!F$26,"",IF(B21>0,'User input'!F$30*F20,0)) ->  | P21: =IF(B21>'User input'!F$26,"",'User input'!J$14*'User input'!F$24*(E21/1000)^'User input'!K$14*'User input'!F$29) ->  | Q21: =IF(B21>'User input'!F$26,"",IF(B21>0,(P21-P20),0)) ->  | R21: =IF(B21>'User input'!F$26,"",Q21/'User input'!F$27) ->  | S21: =IF(B21>'User input'!F$26,"",(J21+L21+O21+Q21)*('User input'!F$33+'User input'!F$34)-IF(B21='User input'!F$26,(F21-K21)*'User input'!F$33,0)) ->  | T21: =IF(B21>'User input'!F$26,"",L21+M21+N21+O21+Q21-S21) ->  | U21: =IF(B21>'User input'!F$26,"",C21*T21) -> 
B22: =IF(B21>='User input'!F$26,"",B21+1) ->  | C22: =IF(B22>'User input'!F$26,"",'User input'!F$37^B22) ->  | D22: =IF(B22>'User input'!F$26,"",IF(B22=0,'User input'!F$18,D21+1)) ->  | E22: =IF(B22>'User input'!F$26,"",IF(B22=0,'User input'!F$19,E21+'User input'!F$27)) ->  | F22: =IF(B22>'User input'!F$26,"",EXP('User input'!H$14*(D22-'User input'!F$18)+'User input'!I$14*((E22-'User input'!F$19)/100))*'User input'!F$22) ->  | G22: =IF(B22>'User input'!F$26,"",IF(B22>0,F21*'User input'!F$32,0)) ->  | H22: =IF(B22>'User input'!F$26,"",IF(B22>0,F21-F22,0)) ->  | I22: =IF(B22>'User input'!F$26,"",IF(B22>7,0,IF(SUM(I$11:I21)<1,IF(B22='User input'!F$26,'User input'!L31/2,'User input'!L31),0))) ->  | J22: =IF(B22>'User input'!F$26,"",IF(B22=0,MIN('User input'!F$21,'User input'!L$17)+'User input'!L$19+'User input'!L$20*I22,'User input'!L$20*I22)) ->  | K22: =IF(B22>'User input'!F$26,"",IF(B22=0,'User input'!F$21-J22,K21-J22)) ->  | L22: =IF(B22>'User input'!F$26,"",IF(B22>0,('User input'!F$21-'User input'!F$23)*'User input'!F$32,0)) ->  | M22: =IF(B22>'User input'!F$26,"",IF(B22='User input'!F$26,'User input'!F$21-'User input'!F$23,0)) ->  | N22: =IF(B22>'User input'!F$26,"",IF(B22=0,'User input'!F$23,IF(B22='User input'!F$26,-F22,0))) ->  | O22: =IF(B22>'User input'!F$26,"",IF(B22>0,'User input'!F$30*F21,0)) ->  | P22: =IF(B22>'User input'!F$26,"",'User input'!J$14*'User input'!F$24*(E22/1000)^'User input'!K$14*'User input'!F$29) ->  | Q22: =IF(B22>'User input'!F$26,"",IF(B22>0,(P22-P21),0)) ->  | R22: =IF(B22>'User input'!F$26,"",Q22/'User input'!F$27) ->  | S22: =IF(B22>'User input'!F$26,"",(J22+L22+O22+Q22)*('User input'!F$33+'User input'!F$34)-IF(B22='User input'!F$26,(F22-K22)*'User input'!F$33,0)) ->  | T22: =IF(B22>'User input'!F$26,"",L22+M22+N22+O22+Q22-S22) ->  | U22: =IF(B22>'User input'!F$26,"",C22*T22) -> 
B23: =IF(B22>='User input'!F$26,"",B22+1) ->  | C23: =IF(B23>'User input'!F$26,"",'User input'!F$37^B23) ->  | D23: =IF(B23>'User input'!F$26,"",IF(B23=0,'User input'!F$18,D22+1)) ->  | E23: =IF(B23>'User input'!F$26,"",IF(B23=0,'User input'!F$19,E22+'User input'!F$27)) ->  | F23: =IF(B23>'User input'!F$26,"",EXP('User input'!H$14*(D23-'User input'!F$18)+'User input'!I$14*((E23-'User input'!F$19)/100))*'User input'!F$22) ->  | G23: =IF(B23>'User input'!F$26,"",IF(B23>0,F22*'User input'!F$32,0)) ->  | H23: =IF(B23>'User input'!F$26,"",IF(B23>0,F22-F23,0)) ->  | I23: =IF(B23>'User input'!F$26,"",IF(B23>7,0,IF(SUM(I$11:I22)<1,IF(B23='User input'!F$26,'User input'!L32/2,'User input'!L32),0))) ->  | J23: =IF(B23>'User input'!F$26,"",IF(B23=0,MIN('User input'!F$21,'User input'!L$17)+'User input'!L$19+'User input'!L$20*I23,'User input'!L$20*I23)) ->  | K23: =IF(B23>'User input'!F$26,"",IF(B23=0,'User input'!F$21-J23,K22-J23)) ->  | L23: =IF(B23>'User input'!F$26,"",IF(B23>0,('User input'!F$21-'User input'!F$23)*'User input'!F$32,0)) ->  | M23: =IF(B23>'User input'!F$26,"",IF(B23='User input'!F$26,'User input'!F$21-'User input'!F$23,0)) ->  | N23: =IF(B23>'User input'!F$26,"",IF(B23=0,'User input'!F$23,IF(B23='User input'!F$26,-F23,0))) ->  | O23: =IF(B23>'User input'!F$26,"",IF(B23>0,'User input'!F$30*F22,0)) ->  | P23: =IF(B23>'User input'!F$26,"",'User input'!J$14*'User input'!F$24*(E23/1000)^'User input'!K$14*'User input'!F$29) ->  | Q23: =IF(B23>'User input'!F$26,"",IF(B23>0,(P23-P22),0)) ->  | R23: =IF(B23>'User input'!F$26,"",Q23/'User input'!F$27) ->  | S23: =IF(B23>'User input'!F$26,"",(J23+L23+O23+Q23)*('User input'!F$33+'User input'!F$34)-IF(B23='User input'!F$26,(F23-K23)*'User input'!F$33,0)) ->  | T23: =IF(B23>'User input'!F$26,"",L23+M23+N23+O23+Q23-S23) ->  | U23: =IF(B23>'User input'!F$26,"",C23*T23) -> 
B24: =IF(B23>='User input'!F$26,"",B23+1) ->  | C24: =IF(B24>'User input'!F$26,"",'User input'!F$37^B24) ->  | D24: =IF(B24>'User input'!F$26,"",IF(B24=0,'User input'!F$18,D23+1)) ->  | E24: =IF(B24>'User input'!F$26,"",IF(B24=0,'User input'!F$19,E23+'User input'!F$27)) ->  | F24: =IF(B24>'User input'!F$26,"",EXP('User input'!H$14*(D24-'User input'!F$18)+'User input'!I$14*((E24-'User input'!F$19)/100))*'User input'!F$22) ->  | G24: =IF(B24>'User input'!F$26,"",IF(B24>0,F23*'User input'!F$32,0)) ->  | H24: =IF(B24>'User input'!F$26,"",IF(B24>0,F23-F24,0)) ->  | I24: =IF(B24>'User input'!F$26,"",IF(B24>7,0,IF(SUM(I$11:I23)<1,IF(B24='User input'!F$26,'User input'!L33/2,'User input'!L33),0))) ->  | J24: =IF(B24>'User input'!F$26,"",IF(B24=0,MIN('User input'!F$21,'User input'!L$17)+'User input'!L$19+'User input'!L$20*I24,'User input'!L$20*I24)) ->  | K24: =IF(B24>'User input'!F$26,"",IF(B24=0,'User input'!F$21-J24,K23-J24)) ->  | L24: =IF(B24>'User input'!F$26,"",IF(B24>0,('User input'!F$21-'User input'!F$23)*'User input'!F$32,0)) ->  | M24: =IF(B24>'User input'!F$26,"",IF(B24='User input'!F$26,'User input'!F$21-'User input'!F$23,0)) ->  | N24: =IF(B24>'User input'!F$26,"",IF(B24=0,'User input'!F$23,IF(B24='User input'!F$26,-F24,0))) ->  | O24: =IF(B24>'User input'!F$26,"",IF(B24>0,'User input'!F$30*F23,0)) ->  | P24: =IF(B24>'User input'!F$26,"",'User input'!J$14*'User input'!F$24*(E24/1000)^'User input'!K$14*'User input'!F$29) ->  | Q24: =IF(B24>'User input'!F$26,"",IF(B24>0,(P24-P23),0)) ->  | R24: =IF(B24>'User input'!F$26,"",Q24/'User input'!F$27) ->  | S24: =IF(B24>'User input'!F$26,"",(J24+L24+O24+Q24)*('User input'!F$33+'User input'!F$34)-IF(B24='User input'!F$26,(F24-K24)*'User input'!F$33,0)) ->  | T24: =IF(B24>'User input'!F$26,"",L24+M24+N24+O24+Q24-S24) ->  | U24: =IF(B24>'User input'!F$26,"",C24*T24) -> 
B25: =IF(B24>='User input'!F$26,"",B24+1) ->  | C25: =IF(B25>'User input'!F$26,"",'User input'!F$37^B25) ->  | D25: =IF(B25>'User input'!F$26,"",IF(B25=0,'User input'!F$18,D24+1)) ->  | E25: =IF(B25>'User input'!F$26,"",IF(B25=0,'User input'!F$19,E24+'User input'!F$27)) ->  | F25: =IF(B25>'User input'!F$26,"",EXP('User input'!H$14*(D25-'User input'!F$18)+'User input'!I$14*((E25-'User input'!F$19)/100))*'User input'!F$22) ->  | G25: =IF(B25>'User input'!F$26,"",IF(B25>0,F24*'User input'!F$32,0)) ->  | H25: =IF(B25>'User input'!F$26,"",IF(B25>0,F24-F25,0)) ->  | I25: =IF(B25>'User input'!F$26,"",IF(B25>7,0,IF(SUM(I$11:I24)<1,IF(B25='User input'!F$26,'User input'!L34/2,'User input'!L34),0))) ->  | J25: =IF(B25>'User input'!F$26,"",IF(B25=0,MIN('User input'!F$21,'User input'!L$17)+'User input'!L$19+'User input'!L$20*I25,'User input'!L$20*I25)) ->  | K25: =IF(B25>'User input'!F$26,"",IF(B25=0,'User input'!F$21-J25,K24-J25)) ->  | L25: =IF(B25>'User input'!F$26,"",IF(B25>0,('User input'!F$21-'User input'!F$23)*'User input'!F$32,0)) ->  | M25: =IF(B25>'User input'!F$26,"",IF(B25='User input'!F$26,'User input'!F$21-'User input'!F$23,0)) ->  | N25: =IF(B25>'User input'!F$26,"",IF(B25=0,'User input'!F$23,IF(B25='User input'!F$26,-F25,0))) ->  | O25: =IF(B25>'User input'!F$26,"",IF(B25>0,'User input'!F$30*F24,0)) ->  | P25: =IF(B25>'User input'!F$26,"",'User input'!J$14*'User input'!F$24*(E25/1000)^'User input'!K$14*'User input'!F$29) ->  | Q25: =IF(B25>'User input'!F$26,"",IF(B25>0,(P25-P24),0)) ->  | R25: =IF(B25>'User input'!F$26,"",Q25/'User input'!F$27) ->  | S25: =IF(B25>'User input'!F$26,"",(J25+L25+O25+Q25)*('User input'!F$33+'User input'!F$34)-IF(B25='User input'!F$26,(F25-K25)*'User input'!F$33,0)) ->  | T25: =IF(B25>'User input'!F$26,"",L25+M25+N25+O25+Q25-S25) ->  | U25: =IF(B25>'User input'!F$26,"",C25*T25) -> 
B26: =IF(B25>='User input'!F$26,"",B25+1) ->  | C26: =IF(B26>'User input'!F$26,"",'User input'!F$37^B26) ->  | D26: =IF(B26>'User input'!F$26,"",IF(B26=0,'User input'!F$18,D25+1)) ->  | E26: =IF(B26>'User input'!F$26,"",IF(B26=0,'User input'!F$19,E25+'User input'!F$27)) ->  | F26: =IF(B26>'User input'!F$26,"",EXP('User input'!H$14*(D26-'User input'!F$18)+'User input'!I$14*((E26-'User input'!F$19)/100))*'User input'!F$22) ->  | G26: =IF(B26>'User input'!F$26,"",IF(B26>0,F25*'User input'!F$32,0)) ->  | H26: =IF(B26>'User input'!F$26,"",IF(B26>0,F25-F26,0)) ->  | I26: =IF(B26>'User input'!F$26,"",IF(B26>7,0,IF(SUM(I$11:I25)<1,IF(B26='User input'!F$26,'User input'!L35/2,'User input'!L35),0))) ->  | J26: =IF(B26>'User input'!F$26,"",IF(B26=0,MIN('User input'!F$21,'User input'!L$17)+'User input'!L$19+'User input'!L$20*I26,'User input'!L$20*I26)) ->  | K26: =IF(B26>'User input'!F$26,"",IF(B26=0,'User input'!F$21-J26,K25-J26)) ->  | L26: =IF(B26>'User input'!F$26,"",IF(B26>0,('User input'!F$21-'User input'!F$23)*'User input'!F$32,0)) ->  | M26: =IF(B26>'User input'!F$26,"",IF(B26='User input'!F$26,'User input'!F$21-'User input'!F$23,0)) ->  | N26: =IF(B26>'User input'!F$26,"",IF(B26=0,'User input'!F$23,IF(B26='User input'!F$26,-F26,0))) ->  | O26: =IF(B26>'User input'!F$26,"",IF(B26>0,'User input'!F$30*F25,0)) ->  | P26: =IF(B26>'User input'!F$26,"",'User input'!J$14*'User input'!F$24*(E26/1000)^'User input'!K$14*'User input'!F$29) ->  | Q26: =IF(B26>'User input'!F$26,"",IF(B26>0,(P26-P25),0)) ->  | R26: =IF(B26>'User input'!F$26,"",Q26/'User input'!F$27) ->  | S26: =IF(B26>'User input'!F$26,"",(J26+L26+O26+Q26)*('User input'!F$33+'User input'!F$34)-IF(B26='User input'!F$26,(F26-K26)*'User input'!F$33,0)) ->  | T26: =IF(B26>'User input'!F$26,"",L26+M26+N26+O26+Q26-S26) ->  | U26: =IF(B26>'User input'!F$26,"",C26*T26) -> 
B27: =IF(B26>='User input'!F$26,"",B26+1) ->  | C27: =IF(B27>'User input'!F$26,"",'User input'!F$37^B27) ->  | D27: =IF(B27>'User input'!F$26,"",IF(B27=0,'User input'!F$18,D26+1)) ->  | E27: =IF(B27>'User input'!F$26,"",IF(B27=0,'User input'!F$19,E26+'User input'!F$27)) ->  | F27: =IF(B27>'User input'!F$26,"",EXP('User input'!H$14*(D27-'User input'!F$18)+'User input'!I$14*((E27-'User input'!F$19)/100))*'User input'!F$22) ->  | G27: =IF(B27>'User input'!F$26,"",IF(B27>0,F26*'User input'!F$32,0)) ->  | H27: =IF(B27>'User input'!F$26,"",IF(B27>0,F26-F27,0)) ->  | I27: =IF(B27>'User input'!F$26,"",IF(B27>7,0,IF(SUM(I$11:I26)<1,IF(B27='User input'!F$26,'User input'!L36/2,'User input'!L36),0))) ->  | J27: =IF(B27>'User input'!F$26,"",IF(B27=0,MIN('User input'!F$21,'User input'!L$17)+'User input'!L$19+'User input'!L$20*I27,'User input'!L$20*I27)) ->  | K27: =IF(B27>'User input'!F$26,"",IF(B27=0,'User input'!F$21-J27,K26-J27)) ->  | L27: =IF(B27>'User input'!F$26,"",IF(B27>0,('User input'!F$21-'User input'!F$23)*'User input'!F$32,0)) ->  | M27: =IF(B27>'User input'!F$26,"",IF(B27='User input'!F$26,'User input'!F$21-'User input'!F$23,0)) ->  | N27: =IF(B27>'User input'!F$26,"",IF(B27=0,'User input'!F$23,IF(B27='User input'!F$26,-F27,0))) ->  | O27: =IF(B27>'User input'!F$26,"",IF(B27>0,'User input'!F$30*F26,0)) ->  | P27: =IF(B27>'User input'!F$26,"",'User input'!J$14*'User input'!F$24*(E27/1000)^'User input'!K$14*'User input'!F$29) ->  | Q27: =IF(B27>'User input'!F$26,"",IF(B27>0,(P27-P26),0)) ->  | R27: =IF(B27>'User input'!F$26,"",Q27/'User input'!F$27) ->  | S27: =IF(B27>'User input'!F$26,"",(J27+L27+O27+Q27)*('User input'!F$33+'User input'!F$34)-IF(B27='User input'!F$26,(F27-K27)*'User input'!F$33,0)) ->  | T27: =IF(B27>'User input'!F$26,"",L27+M27+N27+O27+Q27-S27) ->  | U27: =IF(B27>'User input'!F$26,"",C27*T27) -> 
B28: =IF(B27>='User input'!F$26,"",B27+1) ->  | C28: =IF(B28>'User input'!F$26,"",'User input'!F$37^B28) ->  | D28: =IF(B28>'User input'!F$26,"",IF(B28=0,'User input'!F$18,D27+1)) ->  | E28: =IF(B28>'User input'!F$26,"",IF(B28=0,'User input'!F$19,E27+'User input'!F$27)) ->  | F28: =IF(B28>'User input'!F$26,"",EXP('User input'!H$14*(D28-'User input'!F$18)+'User input'!I$14*((E28-'User input'!F$19)/100))*'User input'!F$22) ->  | G28: =IF(B28>'User input'!F$26,"",IF(B28>0,F27*'User input'!F$32,0)) ->  | H28: =IF(B28>'User input'!F$26,"",IF(B28>0,F27-F28,0)) ->  | I28: =IF(B28>'User input'!F$26,"",IF(B28>7,0,IF(SUM(I$11:I27)<1,IF(B28='User input'!F$26,'User input'!L37/2,'User input'!L37),0))) ->  | J28: =IF(B28>'User input'!F$26,"",IF(B28=0,MIN('User input'!F$21,'User input'!L$17)+'User input'!L$19+'User input'!L$20*I28,'User input'!L$20*I28)) ->  | K28: =IF(B28>'User input'!F$26,"",IF(B28=0,'User input'!F$21-J28,K27-J28)) ->  | L28: =IF(B28>'User input'!F$26,"",IF(B28>0,('User input'!F$21-'User input'!F$23)*'User input'!F$32,0)) ->  | M28: =IF(B28>'User input'!F$26,"",IF(B28='User input'!F$26,'User input'!F$21-'User input'!F$23,0)) ->  | N28: =IF(B28>'User input'!F$26,"",IF(B28=0,'User input'!F$23,IF(B28='User input'!F$26,-F28,0))) ->  | O28: =IF(B28>'User input'!F$26,"",IF(B28>0,'User input'!F$30*F27,0)) ->  | P28: =IF(B28>'User input'!F$26,"",'User input'!J$14*'User input'!F$24*(E28/1000)^'User input'!K$14*'User input'!F$29) ->  | Q28: =IF(B28>'User input'!F$26,"",IF(B28>0,(P28-P27),0)) ->  | R28: =IF(B28>'User input'!F$26,"",Q28/'User input'!F$27) ->  | S28: =IF(B28>'User input'!F$26,"",(J28+L28+O28+Q28)*('User input'!F$33+'User input'!F$34)-IF(B28='User input'!F$26,(F28-K28)*'User input'!F$33,0)) ->  | T28: =IF(B28>'User input'!F$26,"",L28+M28+N28+O28+Q28-S28) ->  | U28: =IF(B28>'User input'!F$26,"",C28*T28) -> 
B29: =IF(B28>='User input'!F$26,"",B28+1) ->  | C29: =IF(B29>'User input'!F$26,"",'User input'!F$37^B29) ->  | D29: =IF(B29>'User input'!F$26,"",IF(B29=0,'User input'!F$18,D28+1)) ->  | E29: =IF(B29>'User input'!F$26,"",IF(B29=0,'User input'!F$19,E28+'User input'!F$27)) ->  | F29: =IF(B29>'User input'!F$26,"",EXP('User input'!H$14*(D29-'User input'!F$18)+'User input'!I$14*((E29-'User input'!F$19)/100))*'User input'!F$22) ->  | G29: =IF(B29>'User input'!F$26,"",IF(B29>0,F28*'User input'!F$32,0)) ->  | H29: =IF(B29>'User input'!F$26,"",IF(B29>0,F28-F29,0)) ->  | I29: =IF(B29>'User input'!F$26,"",IF(B29>7,0,IF(SUM(I$11:I28)<1,IF(B29='User input'!F$26,'User input'!L38/2,'User input'!L38),0))) ->  | J29: =IF(B29>'User input'!F$26,"",IF(B29=0,MIN('User input'!F$21,'User input'!L$17)+'User input'!L$19+'User input'!L$20*I29,'User input'!L$20*I29)) ->  | K29: =IF(B29>'User input'!F$26,"",IF(B29=0,'User input'!F$21-J29,K28-J29)) ->  | L29: =IF(B29>'User input'!F$26,"",IF(B29>0,('User input'!F$21-'User input'!F$23)*'User input'!F$32,0)) ->  | M29: =IF(B29>'User input'!F$26,"",IF(B29='User input'!F$26,'User input'!F$21-'User input'!F$23,0)) ->  | N29: =IF(B29>'User input'!F$26,"",IF(B29=0,'User input'!F$23,IF(B29='User input'!F$26,-F29,0))) ->  | O29: =IF(B29>'User input'!F$26,"",IF(B29>0,'User input'!F$30*F28,0)) ->  | P29: =IF(B29>'User input'!F$26,"",'User input'!J$14*'User input'!F$24*(E29/1000)^'User input'!K$14*'User input'!F$29) ->  | Q29: =IF(B29>'User input'!F$26,"",IF(B29>0,(P29-P28),0)) ->  | R29: =IF(B29>'User input'!F$26,"",Q29/'User input'!F$27) ->  | S29: =IF(B29>'User input'!F$26,"",(J29+L29+O29+Q29)*('User input'!F$33+'User input'!F$34)-IF(B29='User input'!F$26,(F29-K29)*'User input'!F$33,0)) ->  | T29: =IF(B29>'User input'!F$26,"",L29+M29+N29+O29+Q29-S29) ->  | U29: =IF(B29>'User input'!F$26,"",C29*T29) -> 
B30: =IF(B29>='User input'!F$26,"",B29+1) ->  | C30: =IF(B30>'User input'!F$26,"",'User input'!F$37^B30) ->  | D30: =IF(B30>'User input'!F$26,"",IF(B30=0,'User input'!F$18,D29+1)) ->  | E30: =IF(B30>'User input'!F$26,"",IF(B30=0,'User input'!F$19,E29+'User input'!F$27)) ->  | F30: =IF(B30>'User input'!F$26,"",EXP('User input'!H$14*(D30-'User input'!F$18)+'User input'!I$14*((E30-'User input'!F$19)/100))*'User input'!F$22) ->  | G30: =IF(B30>'User input'!F$26,"",IF(B30>0,F29*'User input'!F$32,0)) ->  | H30: =IF(B30>'User input'!F$26,"",IF(B30>0,F29-F30,0)) ->  | I30: =IF(B30>'User input'!F$26,"",IF(B30>7,0,IF(SUM(I$11:I29)<1,IF(B30='User input'!F$26,'User input'!L39/2,'User input'!L39),0))) ->  | J30: =IF(B30>'User input'!F$26,"",IF(B30=0,MIN('User input'!F$21,'User input'!L$17)+'User input'!L$19+'User input'!L$20*I30,'User input'!L$20*I30)) ->  | K30: =IF(B30>'User input'!F$26,"",IF(B30=0,'User input'!F$21-J30,K29-J30)) ->  | L30: =IF(B30>'User input'!F$26,"",IF(B30>0,('User input'!F$21-'User input'!F$23)*'User input'!F$32,0)) ->  | M30: =IF(B30>'User input'!F$26,"",IF(B30='User input'!F$26,'User input'!F$21-'User input'!F$23,0)) ->  | N30: =IF(B30>'User input'!F$26,"",IF(B30=0,'User input'!F$23,IF(B30='User input'!F$26,-F30,0))) ->  | O30: =IF(B30>'User input'!F$26,"",IF(B30>0,'User input'!F$30*F29,0)) ->  | P30: =IF(B30>'User input'!F$26,"",'User input'!J$14*'User input'!F$24*(E30/1000)^'User input'!K$14*'User input'!F$29) ->  | Q30: =IF(B30>'User input'!F$26,"",IF(B30>0,(P30-P29),0)) ->  | R30: =IF(B30>'User input'!F$26,"",Q30/'User input'!F$27) ->  | S30: =IF(B30>'User input'!F$26,"",(J30+L30+O30+Q30)*('User input'!F$33+'User input'!F$34)-IF(B30='User input'!F$26,(F30-K30)*'User input'!F$33,0)) ->  | T30: =IF(B30>'User input'!F$26,"",L30+M30+N30+O30+Q30-S30) ->  | U30: =IF(B30>'User input'!F$26,"",C30*T30) -> 
B31: =IF(B30>='User input'!F$26,"",B30+1) ->  | C31: =IF(B31>'User input'!F$26,"",'User input'!F$37^B31) ->  | D31: =IF(B31>'User input'!F$26,"",IF(B31=0,'User input'!F$18,D30+1)) ->  | E31: =IF(B31>'User input'!F$26,"",IF(B31=0,'User input'!F$19,E30+'User input'!F$27)) ->  | F31: =IF(B31>'User input'!F$26,"",EXP('User input'!H$14*(D31-'User input'!F$18)+'User input'!I$14*((E31-'User input'!F$19)/100))*'User input'!F$22) ->  | G31: =IF(B31>'User input'!F$26,"",IF(B31>0,F30*'User input'!F$32,0)) ->  | H31: =IF(B31>'User input'!F$26,"",IF(B31>0,F30-F31,0)) ->  | I31: =IF(B31>'User input'!F$26,"",IF(B31>7,0,IF(SUM(I$11:I30)<1,IF(B31='User input'!F$26,'User input'!L40/2,'User input'!L40),0))) ->  | J31: =IF(B31>'User input'!F$26,"",IF(B31=0,MIN('User input'!F$21,'User input'!L$17)+'User input'!L$19+'User input'!L$20*I31,'User input'!L$20*I31)) ->  | K31: =IF(B31>'User input'!F$26,"",IF(B31=0,'User input'!F$21-J31,K30-J31)) ->  | L31: =IF(B31>'User input'!F$26,"",IF(B31>0,('User input'!F$21-'User input'!F$23)*'User input'!F$32,0)) ->  | M31: =IF(B31>'User input'!F$26,"",IF(B31='User input'!F$26,'User input'!F$21-'User input'!F$23,0)) ->  | N31: =IF(B31>'User input'!F$26,"",IF(B31=0,'User input'!F$23,IF(B31='User input'!F$26,-F31,0))) ->  | O31: =IF(B31>'User input'!F$26,"",IF(B31>0,'User input'!F$30*F30,0)) ->  | P31: =IF(B31>'User input'!F$26,"",'User input'!J$14*'User input'!F$24*(E31/1000)^'User input'!K$14*'User input'!F$29) ->  | Q31: =IF(B31>'User input'!F$26,"",IF(B31>0,(P31-P30),0)) ->  | R31: =IF(B31>'User input'!F$26,"",Q31/'User input'!F$27) ->  | S31: =IF(B31>'User input'!F$26,"",(J31+L31+O31+Q31)*('User input'!F$33+'User input'!F$34)-IF(B31='User input'!F$26,(F31-K31)*'User input'!F$33,0)) ->  | T31: =IF(B31>'User input'!F$26,"",L31+M31+N31+O31+Q31-S31) ->  | U31: =IF(B31>'User input'!F$26,"",C31*T31) -> 
B32: =IF(B31>='User input'!F$26,"",B31+1) ->  | C32: =IF(B32>'User input'!F$26,"",'User input'!F$37^B32) ->  | D32: =IF(B32>'User input'!F$26,"",IF(B32=0,'User input'!F$18,D31+1)) ->  | E32: =IF(B32>'User input'!F$26,"",IF(B32=0,'User input'!F$19,E31+'User input'!F$27)) ->  | F32: =IF(B32>'User input'!F$26,"",EXP('User input'!H$14*(D32-'User input'!F$18)+'User input'!I$14*((E32-'User input'!F$19)/100))*'User input'!F$22) ->  | G32: =IF(B32>'User input'!F$26,"",IF(B32>0,F31*'User input'!F$32,0)) ->  | H32: =IF(B32>'User input'!F$26,"",IF(B32>0,F31-F32,0)) ->  | I32: =IF(B32>'User input'!F$26,"",IF(B32>7,0,IF(SUM(I$11:I31)<1,IF(B32='User input'!F$26,'User input'!L41/2,'User input'!L41),0))) ->  | J32: =IF(B32>'User input'!F$26,"",IF(B32=0,MIN('User input'!F$21,'User input'!L$17)+'User input'!L$19+'User input'!L$20*I32,'User input'!L$20*I32)) ->  | K32: =IF(B32>'User input'!F$26,"",IF(B32=0,'User input'!F$21-J32,K31-J32)) ->  | L32: =IF(B32>'User input'!F$26,"",IF(B32>0,('User input'!F$21-'User input'!F$23)*'User input'!F$32,0)) ->  | M32: =IF(B32>'User input'!F$26,"",IF(B32='User input'!F$26,'User input'!F$21-'User input'!F$23,0)) ->  | N32: =IF(B32>'User input'!F$26,"",IF(B32=0,'User input'!F$23,IF(B32='User input'!F$26,-F32,0))) ->  | O32: =IF(B32>'User input'!F$26,"",IF(B32>0,'User input'!F$30*F31,0)) ->  | P32: =IF(B32>'User input'!F$26,"",'User input'!J$14*'User input'!F$24*(E32/1000)^'User input'!K$14*'User input'!F$29) ->  | Q32: =IF(B32>'User input'!F$26,"",IF(B32>0,(P32-P31),0)) ->  | R32: =IF(B32>'User input'!F$26,"",Q32/'User input'!F$27) ->  | S32: =IF(B32>'User input'!F$26,"",(J32+L32+O32+Q32)*('User input'!F$33+'User input'!F$34)-IF(B32='User input'!F$26,(F32-K32)*'User input'!F$33,0)) ->  | T32: =IF(B32>'User input'!F$26,"",L32+M32+N32+O32+Q32-S32) ->  | U32: =IF(B32>'User input'!F$26,"",C32*T32) -> 
B35: * EOY = End of year | I35: =IF(OR('User input'!L29>1.01,'User input'!L29<0.99),"Total depreciation rate should add to 100%"," ") -> 
B36: ** TIS = Property tax, insurance, and shelter | I36: =IF(OR('User input'!L29>1.01,'User input'!L29<0.99),"Go back to User Input tab and check entered values!"," ") -> 

Sheet Analysis summary
B2: Tractor analysis summary section
B4: Analysis highlights:
B5: Tractor class used | E5: =VLOOKUP('User input'!F17,'User input'!C7:K12,2) -> Case-IH 2wd and MFWD
B7: Tractor purchase price | E7: ='User input'!F21 -> 160000
B8: Tractor age when purchased | E8: ='User input'!F18 -> 0
B9: Hours on tractor when purchased | E9: ='User input'!F19 -> 0
B10: Hours used per year | E10: ='User input'!F27 -> 600
B11: Number of years tractor is used | E11: ='User input'!F26 -> 4
B12: Tractor value when sold | E12: =-MIN('Time and Tax (TT)'!N12:N32) -> 116062.7518
B13: Accumulated repairs over lifetime | E13: =MAX('Time and Tax (TT)'!P12:P32) -> 4608
B16: Cost breakdown (total cost can be compared to tractor rental rates):
E18: $/year | F18: $/hour
B19: Opportunity interest | E19: ='User input'!L34 -> 4791.244756 | F19: =E19/E$10 -> 7.985407927
B20: Market depreciation | E20: ='User input'!L35 -> 7390.426067 | F20: =E20/E$10 -> 12.31737678
B21: Repair and maintenance | E21: ='User input'!L36 -> 757.2509958 | F21: =E21/E$10 -> 1.262084993
B22: Tax, insurance, & shelter (TIS) | E22: ='User input'!L37 -> 1437.373427 | F22: =E22/E$10 -> 2.395622378
B24: Total for tractor | E24: =SUM(E19:E22) -> 14376.29525 | F24: =SUM(F19:F22) -> 23.96049208
B27: Date of analysis =====> | D27: =NOW() -> 2016-06-29T11:25:27.700
